bitfinex/quotes_BTCUSD_20241222
["timestamp","ask_amount","ask_price","bid_price","bid_amount"]
[1734860277510,8.57e-05,96984.0,96983.0,0.002]
[1734860277710,8.57e-05,96984.0,96983.0,0.01198167]
[1734860277905,8.57e-05,96984.0,96983.0,0.03725503]
[1734860278572,8.57e-05,96984.0,96983.0,0.13959445]
[1734860278741,8.57e-05,96984.0,96983.0,0.18846343]
[1734860278947,8.57e-05,96984.0,96983.0,0.18746343]
[1734860279291,8.57e-05,96984.0,96983.0,0.33849432]
[1734860279425,8.57e-05,96984.0,96983.0,0.33746343]
[1734860280246,8.57e-05,96984.0,96983.0,0.34546343]
[1734860280812,8.57e-05,96984.0,96983.0,0.34146343]
[1734860281532,8.57e-05,96984.0,96983.0,0.33746343]
[1734860281733,0.0001,96989.0,96983.0,0.33746343]
[1734860281734,7e-07,96989.0,96984.0,0.562438]
[1734860281952,7e-07,96989.0,96988.0,0.1]
[1734860282092,7e-07,96989.0,96988.0,0.20233925]
[1734860282291,7e-07,96989.0,96988.0,0.36063617]
[1734860282490,0.0001,97009.0,96995.0,0.15]
[1734860282689,0.00086853,97007.0,97006.0,0.206172]
[1734860282906,0.00086853,97007.0,97006.0,0.356172]
[1734860283111,0.00086853,97007.0,97006.0,0.36444627]
[1734860284137,0.00086853,97007.0,97006.0,0.36644627]
[1734860284306,0.00086853,97007.0,97006.0,0.36744627]
[1734860286649,0.00086853,97007.0,97006.0,0.39371963]
[1734860287096,0.00086853,97007.0,97006.0,0.39271963]
[1734860287453,0.00086853,97007.0,97006.0,0.39171963]
[1734860288726,0.00095413,97007.0,97006.0,0.39471963]
[1734860289051,0.00095413,97007.0,97006.0,0.39371963]
[1734860289210,0.00095413,97007.0,97006.0,0.39571963]
[1734860290998,0.17103673,97035.0,97006.0,0.18954763]
[1734860291182,0.1013084,97034.0,97020.0,0.206142]
[1734860291522,0.206115,97033.0,97021.0,0.0082672]
[1734860291722,0.206115,97033.0,97015.0,0.206152]
[1734860291967,0.1013084,97034.0,97015.0,0.206152]
[1734860292149,0.1013084,97034.0,97017.0,0.206149]
[1734860292345,0.206115,97033.0,97017.0,0.206149]
[1734860292539,0.1013084,97034.0,97018.0,0.00818663]
[1734860292764,0.206115,97033.0,97018.0,0.00818663]
[1734860293196,0.02020639,97045.0,97018.0,0.00818663]
[1734860293408,0.44371057,98639.0,97077.0,0.20602]
[1734860293409,0.18386333,97108.0,97077.0,0.20602]
[1734860293611,0.205969,97102.0,97078.0,0.10818062]
[1734860293822,0.205985,97095.0,97078.0,0.00818062]
[1734860294028,0.01044188,97102.0,97075.0,0.1]
[1734860294166,0.205977,97098.0,97076.0,0.00807905]
[1734860294376,0.205977,97098.0,97078.0,0.1]
[1734860294577,0.205977,97098.0,97070.0,0.206036]
[1734860294578,0.206096,97089.0,97079.0,0.00807887]
[1734860294786,0.00024806,97081.0,97079.0,0.00782187]
[1734860294980,0.00024806,97081.0,97060.0,0.2499]
[1734860295279,0.206017,97079.0,97061.0,0.0064289]
[1734860295488,0.1013084,97078.0,97061.0,0.0064289]
[1734860295697,0.1013084,97078.0,97048.0,0.1]
[1734860295698,0.1013084,97078.0,97055.0,0.1]
[1734860295893,0.206042,97068.0,97048.0,0.1]
[1734860296198,0.206042,97068.0,97056.0,0.00535443]
[1734860296358,0.206042,97068.0,97055.0,0.1]
[1734860296538,0.206042,97068.0,97056.0,0.00539407]
[1734860297792,0.206058,97060.0,97056.0,0.00639407]
[1734860297995,0.206058,97060.0,97056.0,0.001]
[1734860298399,0.00024806,97081.0,97056.0,0.001]
[1734860298400,0.00024806,97081.0,97063.0,0.1]
[1734860298610,0.00024806,97081.0,97073.0,0.1]
[1734860298811,0.00024806,97081.0,97074.0,0.00541167]
[1734860300139,0.00024806,97081.0,97074.0,0.00641167]
[1734860300910,0.1013084,97080.0,97074.0,0.00641167]
[1734860301121,0.412038,97078.0,97074.0,0.00641167]
[1734860301300,0.20611,97036.0,97030.0,0.2]
[1734860301486,0.023,97065.0,97024.0,0.09136131]
[1734860301686,0.15,97066.0,97031.0,0.00536049]
[1734860301687,0.206117,97032.0,97031.0,0.00536049]
[1734860301957,0.15,97056.0,97016.0,0.09136131]
[1734860301958,0.02079472,97049.0,97016.0,0.09136131]
[1734860302109,0.206127,97028.0,97016.0,0.09136131]
[1734860302313,0.206127,97028.0,97017.0,0.00536134]
[1734860302637,0.206143,97020.0,97017.0,0.00536134]
[1734860302895,0.206143,97020.0,97017.0,0.00552382]
[1734860303861,0.1013084,97048.0,97019.0,0.1]
[1734860304129,0.1013084,97048.0,97018.0,0.1]
[1734860304130,0.41221,97038.0,97022.0,0.1]
[1734860304388,0.41221,97038.0,97023.0,0.00536098]
[1734860305002,0.01014113,97063.0,97023.0,0.00536098]
[1734860305003,0.02025792,97064.0,97040.0,0.1986]
[1734860305177,0.01292566,97087.0,97054.0,0.1]
[1734860305382,0.206015,97080.0,97058.0,0.1]
[1734860305544,0.206015,97080.0,97060.0,0.1]
[1734860305757,0.206015,97080.0,97061.0,0.00535867]
[1734860305954,0.21892766,97087.0,97070.0,0.1]
[1734860306158,0.21892766,97087.0,97076.0,0.1]
[1734860306159,0.01292566,97087.0,97076.0,0.1]
[1734860306443,0.0020857,97081.0,97076.0,0.2]
[1734860306625,0.00224806,97081.0,97077.0,0.00541159]
[1734860306783,0.00024806,97081.0,97076.0,0.2]
[1734860306985,0.00024806,97081.0,97080.0,0.1]
[1734860307185,0.00124806,97081.0,97080.0,0.10541141]
[1734860308215,0.00124806,97081.0,97080.0,0.00541141]
[1734860308417,0.00124806,97081.0,97072.0,0.1]
[1734860308596,0.00124806,97081.0,97073.0,0.00541183]
[1734860308796,0.00124806,97081.0,97078.0,0.1]
[1734860308987,0.20626206,97081.0,97079.0,0.00541147]
[1734860309346,0.00024806,97081.0,97079.0,0.1]
[1734860309545,0.00024806,97081.0,97080.0,0.00541141]
[1734860309961,0.00024806,97081.0,97079.0,0.1]
[1734860310166,0.00124806,97081.0,97080.0,0.00541141]
[1734860310414,0.00124806,97081.0,97066.0,0.1]
[1734860310562,0.206015,97080.0,97067.0,0.00541219]
[1734860310751,0.412031,97080.0,97067.0,0.00541219]
[1734860310958,0.206015,97080.0,97068.0,0.1]
[1734860311157,0.206015,97080.0,97069.0,0.00541207]
[1734860311541,0.00124806,97081.0,97075.0,0.1]
[1734860311947,0.00124806,97081.0,97076.0,0.00543028]
[1734860312176,0.00024806,97081.0,97076.0,0.00543028]
[1734860312529,0.206015,97080.0,97076.0,0.00543028]
[1734860312743,0.1013084,97079.0,97076.0,0.00543028]
[1734860312916,0.20604,97069.0,97061.0,0.000171]
[1734860313295,0.1013084,97079.0,97062.0,0.00543516]
[1734860313497,0.1013084,97079.0,97061.0,0.000171]
[1734860313698,0.206045,97066.0,97061.0,0.000171]
[1734860313899,0.206045,97066.0,97062.0,0.00543516]
[1734860314564,0.206039,97069.0,97062.0,0.00543516]
[1734860315587,0.412079,97069.0,97062.0,0.00543516]
[1734860316636,0.618119,97069.0,97061.0,0.000171]
[1734860316835,0.619119,97069.0,97061.0,0.000171]
[1734860317077,0.001,97069.0,97061.0,0.000171]
[1734860317398,0.206034,97071.0,97061.0,0.000171]
[1734860317626,0.206034,97071.0,97062.0,0.00541827]
[1734860318184,0.20605,97064.0,97062.0,0.00541827]
[1734860318795,0.19605,97064.0,97062.0,0.00541827]
[1734860318994,0.19605,97064.0,97061.0,0.000171]
[1734860320175,0.19705,97064.0,97061.0,0.000171]
[1734860320624,0.19605,97064.0,97061.0,0.000171]
[1734860321089,0.206053,97062.0,97061.0,0.000171]
[1734860321344,0.3303614,97062.0,97061.0,0.000171]
[1734860322099,0.4803614,97062.0,97061.0,0.000171]
[1734860323413,0.4813614,97062.0,97061.0,0.001171]
[1734860323818,0.4803614,97062.0,97061.0,0.001171]
[1734860324031,0.4803614,97062.0,97061.0,0.000171]
[1734860324247,0.4813614,97062.0,97061.0,0.001171]
[1734860324409,0.4813614,97062.0,97061.0,0.002171]
[1734860325348,0.4813614,97062.0,97061.0,0.001171]
[1734860325591,0.4803614,97062.0,97061.0,0.001171]
[1734860325794,0.4813614,97062.0,97061.0,0.002171]
[1734860326177,0.4803614,97062.0,97061.0,0.001171]
[1734860326573,0.4813614,97062.0,97061.0,0.001171]
[1734860326801,0.4813614,97062.0,97061.0,0.002171]
[1734860327001,0.4813614,97062.0,97061.0,0.001171]
[1734860327197,0.4803614,97062.0,97061.0,0.000171]
[1734860327574,0.4803614,97062.0,97061.0,0.001171]
[1734860328044,0.4803614,97062.0,97061.0,0.000171]
[1734860328592,0.4803614,97062.0,97061.0,0.001171]
[1734860329155,0.4813614,97062.0,97061.0,0.002171]
[1734860330899,0.4813614,97062.0,97022.0,0.1453]
[1734860330900,0.206136,97023.0,97022.0,0.1453]
[1734860331294,0.206136,97023.0,97022.0,0.15089077]
[1734860332062,0.206136,97023.0,97022.0,0.15105325]
[1734860332596,0.206136,97023.0,97022.0,0.05105325]
[1734860332782,0.3074444,97023.0,97022.0,0.00575325]
[1734860333041,0.3074444,97023.0,97022.0,0.00016248]
[1734860333404,0.206136,97023.0,97022.0,0.00016248]
[1734860333839,0.207136,97023.0,97022.0,0.00116248]
[1734860334448,0.206136,97023.0,97022.0,0.00016248]
[1734860334858,0.206136,97023.0,97022.0,0.00033348]
[1734860335388,0.209136,97023.0,97022.0,0.00033348]
[1734860335599,0.209136,97023.0,97022.0,0.00133348]
[1734860335600,0.211136,97023.0,97022.0,0.00133348]
[1734860335774,0.3354444,97023.0,97022.0,0.00133348]
[1734860335955,0.3324444,97023.0,97022.0,0.00133348]
[1734860336159,0.3354444,97023.0,97022.0,0.00133348]
[1734860336750,0.3324444,97023.0,97022.0,0.00133348]
[1734860336943,0.3304444,97023.0,97022.0,0.00033348]
[1734860337183,0.3324444,97023.0,97022.0,0.00033348]
[1734860337373,0.3384444,97023.0,97022.0,0.00133348]
[1734860337632,0.3324444,97023.0,97022.0,0.00033348]
[1734860338107,0.3384444,97023.0,97022.0,0.00133348]
[1734860338516,0.3364444,97023.0,97022.0,0.00133348]
[1734860338870,0.3394444,97023.0,97022.0,0.00133348]
[1734860342384,0.4894444,97023.0,97022.0,0.00133348]
[1734860342598,0.4894444,97023.0,97022.0,4.8e-07]
[1734860343427,0.4894444,97023.0,96983.0,0.0001712]
[1734860343428,0.206219,96984.0,96983.0,0.0001712]
[1734860343648,0.206219,96984.0,96983.0,0.00596881]
[1734860344074,0.206219,96984.0,96983.0,0.0001712]
[1734860344689,0.206219,96984.0,96983.0,0.00071273]
[1734860344912,0.206219,96984.0,96983.0,0.00171273]
[1734860345122,0.3075274,96984.0,96983.0,0.00171273]
[1734860345329,0.3305274,96984.0,96983.0,0.00171273]
[1734860346599,0.3305274,96984.0,96983.0,0.00371273]
[1734860348589,0.3305274,96984.0,96983.0,0.00271273]
[1734860348790,0.3305274,96984.0,96983.0,0.00071273]
[1734860348997,0.21634434,96991.0,96983.0,0.00071273]
[1734860349324,0.12887394,97010.0,96984.0,0.1251]
[1734860349520,0.206212,96988.0,96984.0,0.1251]
[1734860349734,0.206212,96988.0,96985.0,0.00605015]
[1734860349735,0.412424,96988.0,96985.0,0.00605015]
[1734860349953,0.412424,96988.0,96984.0,0.1251]
[1734860350329,0.412424,96988.0,96985.0,0.00605015]
[1734860350737,0.416424,96988.0,96985.0,0.00605015]
[1734860350937,0.412424,96988.0,96985.0,0.00605015]
[1734860351340,0.416424,96988.0,96985.0,0.00605015]
[1734860351544,0.412424,96988.0,96985.0,0.00605015]
[1734860351923,0.416424,96988.0,96985.0,0.00605015]
[1734860352129,0.418424,96988.0,96985.0,0.00605015]
[1734860352768,0.416424,96988.0,96985.0,0.00605015]
[1734860353329,0.412424,96988.0,96985.0,0.00605015]
[1734860353607,0.413424,96988.0,96985.0,0.00605015]
[1734860353811,0.417424,96988.0,96985.0,0.00605015]
[1734860354119,0.413424,96988.0,96985.0,0.00605015]
[1734860354265,0.417424,96988.0,96985.0,0.00605015]
[1734860354858,0.416424,96988.0,96985.0,0.00605015]
[1734860355395,0.417424,96988.0,96985.0,0.00605015]
[1734860355549,0.206215,96986.0,96984.0,0.0473]
[1734860355779,0.023,96985.0,96984.0,0.0473]
[1734860356972,0.023,96985.0,96983.0,0.00071273]
[1734860356973,0.024,96985.0,96983.0,0.00071273]
[1734860357175,0.229219,96984.0,96983.0,0.00071273]
[1734860357582,0.3305274,96984.0,96983.0,0.00071273]
[1734860359646,0.002,96984.0,96983.0,0.00071273]
[1734860360191,0.002,96984.0,96983.0,0.00671466]
[1734860361364,0.023,97002.0,96983.0,0.00671466]
[1734860361524,0.206206,96990.0,96983.0,0.00671466]
[1734860361741,0.023,96989.0,96983.0,0.00671466]
[1734860361943,0.023,96991.0,96983.0,0.00071273]
[1734860362141,0.206206,96990.0,96983.0,0.00071273]
[1734860362398,0.002,96984.0,96983.0,0.00071273]
[1734860362598,0.206211,96988.0,96983.0,0.00071273]
[1734860364209,0.412423,96988.0,96983.0,0.00071273]
[1734860365077,0.229215,96986.0,96983.0,0.00071273]
[1734860365209,0.023,96984.0,96983.0,0.00071273]
[1734860365565,0.3305274,96984.0,96983.0,0.00071273]
[1734860365997,0.515118,97066.0,96983.0,0.00071273]
[1734860365998,8.55e-05,97064.0,97005.0,0.15]
[1734860366199,8.55e-05,97064.0,97022.0,0.1475]
[1734860366512,0.38995033,97046.0,97022.0,0.254599]
[1734860366694,0.09193166,97026.0,97022.0,0.3559074]
[1734860367102,0.09193166,97026.0,97022.0,0.254599]
[1734860367643,0.00024781,97023.0,97022.0,0.254599]
[1734860368625,0.00024781,97023.0,97022.0,0.155599]
[1734860368961,0.00024781,97023.0,97022.0,0.154599]
[1734860369389,0.00124781,97023.0,97022.0,0.163599]
[1734860369612,0.00024781,97023.0,97022.0,0.154599]
[1734860369796,0.00124781,97023.0,97022.0,0.160599]
[1734860370061,0.00224781,97023.0,97022.0,0.169599]
[1734860371348,0.00024781,97023.0,97022.0,0.154599]
[1734860371621,0.00024781,97023.0,97022.0,0.159599]
[1734860371973,0.00024781,97023.0,97022.0,0.064599]
[1734860372174,0.00024781,97023.0,97022.0,0.059599]
[1734860372376,0.00024781,97023.0,97022.0,0.012099]
[1734860372704,0.00124781,97023.0,97022.0,0.016099]
[1734860372857,0.00024781,97023.0,97022.0,0.007099]
[1734860373057,0.00124781,97023.0,97022.0,0.11]
[1734860373262,0.00124781,97023.0,97022.0,0.11679063]
[1734860374053,0.00124781,97023.0,97022.0,0.01679063]
[1734860374473,0.00024781,97023.0,97022.0,0.00679063]
[1734860374672,0.00024781,97023.0,97022.0,0.01579063]
[1734860374872,0.00124781,97023.0,97022.0,0.01979063]
[1734860375051,0.00124781,97023.0,97022.0,0.01079063]
[1734860375474,0.00224781,97023.0,97022.0,0.01679063]
[1734860379327,0.02524781,97023.0,97022.0,0.01679063]
[1734860379705,0.02524781,97023.0,97022.0,0.01]
[1734860380693,0.02324781,97023.0,97022.0,0.004]
[1734860381122,0.02524781,97023.0,97022.0,0.004]
[1734860381357,0.023,97022.0,97011.0,0.1]
[1734860381534,0.229138,97022.0,97011.0,0.1]
[1734860381706,0.435276,97022.0,97012.0,0.00679124]
[1734860382237,0.435276,97022.0,97011.0,0.1]
[1734860382747,0.435276,97022.0,97012.0,0.00679124]
[1734860382880,0.023,97020.0,97012.0,0.00679124]
[1734860383095,0.229138,97022.0,97010.0,0.1]
[1734860383293,0.229138,97022.0,97011.0,0.00684039]
[1734860383723,0.02324781,97023.0,97014.0,0.1]
[1734860383929,0.00024781,97023.0,97022.0,0.1462]
[1734860384348,0.00024781,97023.0,97022.0,0.48039022]
[1734860384771,0.00024781,97023.0,97022.0,0.58169862]
[1734860385151,0.00024781,97023.0,97022.0,0.58469862]
[1734860385349,0.00024781,97023.0,97022.0,0.58169862]
[1734860385756,0.00124781,97023.0,97022.0,0.59269862]
[1734860386846,0.00094764,97023.0,97022.0,0.59269862]
[1734860387720,0.023,97060.0,97042.0,0.1]
[1734860387861,0.023,97058.0,97042.0,0.1]
[1734860388061,0.023,97058.0,97043.0,0.00682291]
[1734860388697,0.023,97058.0,97051.0,0.1]
[1734860388895,0.023,97058.0,97052.0,0.00682236]
[1734860390152,0.023,97056.0,97052.0,0.00682236]
[1734860390540,0.023,97056.0,97046.0,0.1]
[1734860390683,0.023,97056.0,97053.0,0.0068223]
[1734860390891,0.023,97056.0,97046.0,0.1]
[1734860391100,0.023,97056.0,97047.0,0.00682267]
[1734860391318,0.023,97054.0,97047.0,0.00682267]
[1734860391525,0.023,97056.0,97047.0,0.00682267]
[1734860391780,0.1243084,97056.0,97040.0,0.1]
[1734860392187,0.023,97048.0,97041.0,0.00680896]
[1734860392367,0.206085,97047.0,97041.0,0.00680896]
[1734860392572,0.206085,97047.0,97040.0,0.1]
[1734860393121,0.1043084,97056.0,97034.0,0.1]
[1734860393122,0.023,97055.0,97047.0,0.1]
[1734860393313,0.003,97056.0,97055.0,0.1]
[1734860393746,0.003,97056.0,97055.0,0.10674654]
[1734860394794,0.00016233,97061.0,97055.0,0.00674654]
[1734860395262,0.00016233,97061.0,97049.0,0.1]
[1734860395263,0.001,97056.0,97049.0,0.1]
[1734860395590,0.001,97056.0,97046.0,0.1]
[1734860395723,0.1013084,97055.0,97041.0,0.001]
[1734860395921,0.023,97050.0,97047.0,0.00672424]
[1734860396132,0.023,97048.0,97041.0,0.001]
[1734860396477,0.1243084,97048.0,97041.0,0.001]
[1734860397214,0.1243084,97048.0,97026.0,0.30613]
[1734860397600,0.1243084,97048.0,97028.0,0.206126]
[1734860397974,0.1243084,97048.0,97030.0,0.206121]
[1734860398380,0.1243084,97048.0,97031.0,0.0067262]
[1734860399181,0.1243084,97048.0,97032.0,0.206117]
[1734860399582,0.1243084,97048.0,97033.0,0.00672608]
[1734860400203,0.023,97048.0,97032.0,0.206117]
[1734860400404,8.57e-05,97056.0,97037.0,0.206106]
[1734860400655,8.57e-05,97056.0,97043.0,0.206092]
[1734860400959,8.57e-05,97056.0,97045.0,0.306089]
[1734860401399,8.57e-05,97056.0,97047.0,0.1]
[1734860401691,8.57e-05,97056.0,97051.0,0.1]
[1734860402017,8.57e-05,97056.0,97052.0,0.21283817]
[1734860402228,8.57e-05,97056.0,97052.0,0.00676317]
[1734860402604,8.57e-05,97056.0,97053.0,0.206072]
[1734860402827,8.57e-05,97056.0,97055.0,0.4313]
[1734860403172,0.0020857,97056.0,97055.0,0.43803015]
[1734860403374,8.57e-05,97056.0,97055.0,0.43803015]
[1734860403781,0.0020857,97056.0,97055.0,0.43803015]
[1734860403978,8.57e-05,97056.0,97055.0,0.43803015]
[1734860404378,0.0010857,97056.0,97055.0,0.44603015]
[1734860405010,0.0010857,97056.0,97055.0,0.54733855]
[1734860405211,0.00016233,97061.0,97055.0,0.54733855]
[1734860405212,0.00016233,97061.0,97060.0,0.4313]
[1734860405411,0.00016233,97061.0,97060.0,0.5326084]
[1734860405616,0.00016233,97061.0,97060.0,0.53926368]
[1734860406752,0.00016233,97061.0,97060.0,0.54126368]
[1734860406961,0.00016233,97061.0,97060.0,0.54326368]
[1734860407165,0.00016233,97061.0,97060.0,0.44195528]
[1734860407313,0.00016233,97061.0,97060.0,0.34195528]
[1734860407510,0.00016233,97061.0,97060.0,0.44195528]
[1734860408941,0.00016233,97061.0,97060.0,0.43995528]
[1734860409157,0.00016233,97061.0,97060.0,0.44495528]
[1734860409344,0.00016233,97061.0,97060.0,0.44295528]
[1734860409754,0.00016233,97061.0,97060.0,0.44695528]
[1734860409984,0.00016233,97061.0,97060.0,0.44195528]
[1734860410205,0.00016233,97061.0,97060.0,0.33795528]
[1734860410357,0.00016233,97061.0,97060.0,0.33995528]
[1734860410575,0.00016233,97061.0,97060.0,0.44095528]
[1734860410774,0.00016233,97061.0,97060.0,0.34095528]
[1734860410979,0.00016233,97061.0,97060.0,0.44095528]
[1734860411713,0.00016233,97061.0,97060.0,0.43895528]
[1734860412125,0.00016233,97061.0,97060.0,0.54226368]
[1734860414531,0.00016233,97061.0,97060.0,0.34095528]
[1734860414955,0.00016233,97061.0,97060.0,0.44095528]
[1734860415145,0.00016233,97061.0,97060.0,0.43895528]
[1734860415385,0.00016233,97061.0,97060.0,0.54026368]
[1734860415571,0.00016233,97061.0,97060.0,0.54626368]
[1734860415733,0.00016233,97061.0,97060.0,0.54526368]
[1734860416074,0.00016233,97061.0,97060.0,0.54826368]
[1734860416289,0.00016233,97061.0,97060.0,0.55326368]
[1734860416526,0.00016233,97061.0,97060.0,0.44295528]
[1734860416699,0.00016233,97061.0,97060.0,0.44495528]
[1734860417038,0.00016233,97061.0,97060.0,0.19295528]
[1734860417236,0.00016233,97061.0,97060.0,0.01165528]
[1734860417441,0.00016233,97061.0,97060.0,0.02065528]
[1734860417664,0.00016233,97061.0,97060.0,0.005]
[1734860418068,8.55e-05,97064.0,97060.0,0.4353084]
[1734860418291,0.01292566,97087.0,97080.0,0.406015]
[1734860418495,0.00015818,97081.0,97080.0,0.5897234]
[1734860418693,0.00015818,97081.0,97080.0,0.59636213]
[1734860418893,0.00015818,97081.0,97080.0,0.74636213]
[1734860419476,0.00015818,97081.0,97080.0,0.74836213]
[1734860419671,0.00015818,97081.0,97080.0,0.75636213]
[1734860419874,0.00015818,97081.0,97080.0,0.65305373]
[1734860420289,0.00015818,97081.0,97080.0,0.65805373]
[1734860421036,0.00015818,97081.0,97080.0,0.65005373]
[1734860421613,0.00015818,97081.0,97080.0,0.63005373]
[1734860421828,0.00015818,97081.0,97080.0,0.63305373]
[1734860422429,0.00015818,97081.0,97080.0,0.63005373]
[1734860422636,0.00015818,97081.0,97080.0,0.63305373]
[1734860422837,0.00015818,97081.0,97080.0,0.73436213]
[1734860423037,0.00015818,97081.0,97080.0,0.74236213]
[1734860423243,0.00015818,97081.0,97080.0,0.73436213]
[1734860423565,0.00015818,97081.0,97080.0,0.74236213]
[1734860423999,0.00015818,97081.0,97080.0,0.73436213]
[1734860424199,0.00015818,97081.0,97080.0,0.64236213]
[1734860424496,0.00015818,97081.0,97080.0,0.74236213]
[1734860424701,0.00015818,97081.0,97080.0,0.73936213]
[1734860424897,0.00015818,97081.0,97080.0,0.74336213]
[1734860425246,0.00015818,97081.0,97080.0,0.73936213]
[1734860425445,0.00015818,97081.0,97080.0,0.78596213]
[1734860425654,0.00015818,97081.0,97080.0,1.30200213]
[1734860426437,0.00015818,97081.0,97080.0,1.29300213]
[1734860426565,0.00015818,97081.0,97080.0,1.30900759]
[1734860426769,0.00015818,97081.0,97080.0,1.30800759]
[1734860427197,0.00015818,97081.0,97080.0,1.31200759]
[1734860427397,0.01292566,97087.0,97086.0,0.1]
[1734860427617,0.01292566,97087.0,97086.0,0.8663184]
[1734860427832,0.01292566,97087.0,97086.0,0.77158396]
[1734860428203,0.01292566,97087.0,97086.0,0.62158396]
[1734860428405,0.01292566,97087.0,97086.0,0.72158396]
[1734860428596,0.01292566,97087.0,97086.0,0.52158396]
[1734860429020,0.01292566,97087.0,97086.0,0.52658396]
[1734860429229,0.03592566,97087.0,97086.0,0.52658396]
[1734860429430,0.03592566,97087.0,97086.0,0.52158396]
[1734860429974,0.015,97110.0,97104.0,0.175]
[1734860430170,0.015,97110.0,97104.0,0.78991]
[1734860430402,0.015,97110.0,97104.0,0.79664521]
[1734860430936,0.015,97110.0,97104.0,0.94664521]
[1734860431936,0.015,97110.0,97104.0,0.95119471]
[1734860432915,0.015,97110.0,97104.0,0.95419471]
[1734860433301,0.015,97110.0,97104.0,0.70419471]
[1734860433495,0.015,97110.0,97104.0,0.71319471]
[1734860433681,0.015,97110.0,97104.0,0.70419471]
[1734860434143,0.015,97110.0,97104.0,0.71119471]
[1734860434362,0.015,97110.0,97104.0,0.70119471]
[1734860434571,0.015,97110.0,97104.0,0.70819471]
[1734860434778,0.015,97110.0,97104.0,0.71119471]
[1734860435181,0.015,97110.0,97104.0,0.70819471]
[1734860435628,0.015,97110.0,97104.0,0.71119471]
[1734860436707,0.015,97110.0,97104.0,0.70419471]
[1734860437108,0.015,97110.0,97104.0,0.71119471]
[1734860437441,0.015,97110.0,97104.0,0.53619471]
[1734860438960,0.015,97110.0,97104.0,0.53319471]
[1734860439166,0.206056,97109.0,97104.0,0.53619471]
[1734860439811,0.0001,97109.0,97104.0,0.52919471]
[1734860439989,0.205956,97108.0,97104.0,0.53619471]
[1734860441078,0.205956,97108.0,97104.0,0.53319471]
[1734860441503,0.205956,97108.0,97104.0,0.52619471]
[1734860442311,0.023,97107.0,97104.0,0.52619471]
[1734860449761,0.1243941,97105.0,97104.0,0.52619471]
[1734860450721,0.14529642,97105.0,97104.0,0.52619471]
[1734860450922,0.37029642,97105.0,97104.0,0.52619471]
[1734860451935,0.37029642,97105.0,97104.0,0.51491]
[1734860452341,0.37029642,97105.0,97104.0,0.52165749]
[1734860453126,0.37029642,97105.0,97104.0,0.52265749]
[1734860453631,0.37029642,97105.0,97104.0,0.52165749]
[1734860453833,0.37029642,97105.0,97104.0,0.52265749]
[1734860453982,0.37029642,97105.0,97104.0,0.52165749]
[1734860454209,0.2743941,97105.0,97104.0,0.52165749]
[1734860454635,0.1013941,97105.0,97104.0,0.52265749]
[1734860456136,0.1243941,97105.0,97104.0,0.52165749]
[1734860457162,0.1243941,97105.0,97104.0,0.51975408]
[1734860457316,8.57e-05,97105.0,97104.0,0.51975408]
[1734860457519,8.57e-05,97105.0,97104.0,0.51795408]
[1734860460639,8.57e-05,97105.0,97104.0,0.94196248]
[1734860460901,8.57e-05,97105.0,97104.0,0.95089884]
[1734860461164,8.57e-05,97105.0,97104.0,0.95282405]
[1734860461400,8.57e-05,97105.0,97104.0,1.10282405]
[1734860461599,8.57e-05,97105.0,97104.0,1.09388769]
[1734860462780,8.57e-05,97105.0,97104.0,1.09988769]
[1734860462990,8.57e-05,97105.0,97104.0,1.09388769]
[1734860463190,8.57e-05,97105.0,97104.0,0.84257929]
[1734860463394,8.57e-05,97105.0,97104.0,0.84957929]
[1734860463593,8.57e-05,97105.0,97104.0,0.74557929]
[1734860463806,8.57e-05,97105.0,97104.0,0.75457929]
[1734860464008,8.57e-05,97105.0,97104.0,0.60447929]
[1734860464201,8.57e-05,97105.0,97104.0,0.51987929]
[1734860464379,8.57e-05,97105.0,97104.0,0.52387929]
[1734860464916,8.57e-05,97105.0,97104.0,0.51987929]
[1734860465275,8.57e-05,97105.0,97104.0,0.52387929]
[1734860465504,8.57e-05,97105.0,97104.0,0.53287929]
[1734860465710,0.1243941,97105.0,97104.0,0.53287929]
[1734860465909,0.1243941,97105.0,97104.0,0.52387929]
[1734860466186,0.1243941,97105.0,97104.0,0.53287929]
[1734860466568,0.1243941,97105.0,97104.0,0.51987929]
[1734860466775,0.1243941,97105.0,97104.0,0.52487929]
[1734860467121,0.1243941,97105.0,97104.0,0.51987929]
[1734860467325,0.1243941,97105.0,97104.0,0.52087929]
[1734860467528,0.1243941,97105.0,97104.0,0.52387929]
[1734860467937,0.1243941,97105.0,97104.0,0.52087929]
[1734860468594,0.1243941,97105.0,97104.0,0.51987929]
[1734860469100,0.1263941,97105.0,97104.0,0.51987929]
[1734860469255,0.1243941,97105.0,97104.0,0.51987929]
[1734860469457,0.1263941,97105.0,97104.0,0.52087929]
[1734860470215,0.1263941,97105.0,97104.0,0.52105049]
[1734860471942,0.1243941,97105.0,97104.0,0.52005049]
[1734860472145,0.1243941,97105.0,97104.0,0.52105049]
[1734860472347,0.1253941,97105.0,97104.0,0.52105049]
[1734860474997,0.1243941,97105.0,97104.0,0.52005049]
[1734860475196,0.1243941,97105.0,97104.0,0.52105049]
[1734860475465,0.1253941,97105.0,97104.0,0.52105049]
[1734860475761,0.1253941,97105.0,97104.0,0.52005049]
[1734860475951,0.1263941,97105.0,97104.0,0.52105049]
[1734860476398,0.0250857,97105.0,97104.0,0.52105049]
[1734860477463,0.0020857,97105.0,97104.0,0.67005049]
[1734860477791,0.0020857,97105.0,97104.0,0.77005049]
[1734860478530,8.57e-05,97105.0,97104.0,0.76905049]
[1734860478934,0.0010857,97105.0,97104.0,0.76905049]
[1734860479341,0.220611,97123.0,97104.0,0.76905049]
[1734860479342,0.0001,97129.0,97105.0,0.205962]
[1734860479539,0.00054095,97112.0,97109.0,0.205954]
[1734860479729,0.00054095,97112.0,97109.0,0.722644]
[1734860479897,0.00054095,97112.0,97110.0,0.00674383]
[1734860480100,0.00054095,97112.0,97111.0,0.388149]
[1734860480318,0.00054095,97112.0,97111.0,0.904819]
[1734860480500,0.00054095,97112.0,97111.0,0.91156277]
[1734860481143,0.00054095,97112.0,97111.0,0.70561377]
[1734860481639,0.00054095,97112.0,97111.0,0.95661377]
[1734860482024,0.00054095,97112.0,97111.0,0.95561377]
[1734860482220,0.00054095,97112.0,97111.0,0.95861377]
[1734860482453,0.00054095,97112.0,97111.0,0.95561377]
[1734860482781,0.00054095,97112.0,97111.0,0.95961377]
[1734860483513,0.00054095,97112.0,97111.0,0.96061377]
[1734860483911,0.00054095,97112.0,97111.0,0.95961377]